bitfinex-derivatives/quotes_ETHF0:USTF0_20260316
["timestamp","ask_amount","ask_price","bid_price","bid_amount"]
[1773685330807,10.02227816,2335.4,2334.3,9.76713731]
[1773685331202,10.02666669,2335.4,2334.3,9.77162574]
[1773685332213,0.00438853,2335.4,2334.3,9.77162574]
[1773685332508,10.02666669,2335.4,2334.3,9.77162574]
[1773685334608,10.02666669,2335.4,2334.5,9.76713731]
[1773685335008,0.00438853,2335.4,2334.5,9.76713731]
[1773685335210,10.02666669,2335.4,2334.5,9.76713731]
[1773685336003,0.00438853,2335.4,2334.5,9.76713731]
[1773685337107,0.00438853,2335.4,2334.7,9.76713731]
[1773685337713,10.02227816,2336.1,2334.7,9.76713731]
[1773685338604,10.02638424,2336.1,2334.7,9.76713731]
[1773685339714,10.31774559,2336.1,2334.7,9.76713731]
[1773685342313,10.53314732,2336.1,2334.7,9.76713731]
[1773685343512,10.53314732,2336.1,2334.9,9.39048797]
[1773685343809,9.08941672,2336.1,2334.9,9.60461797]
[1773685344515,9.08941672,2336.1,2335.0,8.63]
[1773685344816,9.08941672,2336.1,2335.1,9.39048797]
[1773685345018,9.08941672,2336.1,2335.2,9.39048797]
[1773685345818,9.30343672,2336.1,2335.2,9.39048797]
[1773685346014,9.30343672,2336.1,2334.7,9.39048797]
[1773685348115,0.00410608,2336.1,2335.1,9.39048797]
[1773685348318,10.333,2336.8,2335.7,9.39048797]
[1773685348319,9.08531064,2336.8,2335.7,9.39048797]
[1773685348618,9.08531064,2336.8,2335.8,8.635]
[1773685348819,9.08531064,2336.8,2335.9,9.39048797]
[1773685349219,9.09004048,2336.8,2335.9,9.39048797]
[1773685349613,9.09004048,2336.8,2335.7,9.39048797]
[1773685350025,9.30539894,2336.8,2335.7,9.39048797]
[1773685351721,9.08531064,2336.6,2335.7,9.39048797]
[1773685352219,9.08531064,2336.6,2335.2,9.39048797]
[1773685352420,9.08531064,2336.6,2335.5,9.39048797]
[1773685357122,0.00472984,2336.8,2336.0,9.39048797]
[1773685357327,0.21388,2337.7,2336.2,9.39048797]
[1773685357328,9.08531064,2337.4,2336.2,9.39048797]
[1773685357528,9.08531064,2337.4,2336.4,9.39048797]
[1773685357828,9.08531064,2337.4,2336.5,9.39048797]
[1773685358029,9.30029309,2337.4,2336.5,9.39048797]
[1773685358220,9.08531064,2337.2,2336.5,0.00528948]
[1773685358819,9.08531064,2337.2,2336.5,9.39577745]
[1773685359019,9.30335869,2337.4,2336.5,9.39577745]
[1773685359724,9.08531064,2337.9,2336.5,9.39577745]
[1773685359932,9.08531064,2338.3,2336.9,9.39048797]
[1773685360225,9.08531064,2338.1,2337.1,9.39048797]
[1773685360730,9.09030546,2338.1,2337.2,9.39048797]
[1773685361625,9.09030546,2338.1,2337.0,8.641]
[1773685361927,9.09030546,2338.1,2337.1,9.39048797]
[1773685362231,9.40114135,2338.1,2337.1,9.39048797]
[1773685362631,9.09030546,2338.1,2337.1,9.39048797]
[1773685363728,9.08531064,2337.9,2337.0,9.39048797]
[1773685364932,9.08531064,2337.7,2337.0,9.39048797]
[1773685365133,9.19340064,2337.5,2336.6,9.39048797]
[1773685365333,9.19248064,2337.5,2336.6,9.39048797]
[1773685365533,9.19248064,2337.5,2336.5,0.00528948]
[1773685366033,9.19248064,2337.5,2336.5,9.39577745]
[1773685366230,9.19443064,2337.5,2336.5,9.39577745]
[1773685366433,9.08531064,2337.3,2336.5,9.39577745]
[1773685366732,9.19435064,2337.3,2336.5,9.39577745]
[1773685366928,9.19757064,2337.1,2336.3,9.39048797]
[1773685367833,9.08531064,2337.3,2336.3,9.39048797]
[1773685368033,9.08531064,2337.3,2336.3,9.39452862]
[1773685369431,9.08531064,2337.3,2336.4,9.39048797]
[1773685371432,9.08531064,2337.3,2336.4,18.03348797]
[1773685371733,9.08531064,2337.3,2336.4,9.39048797]
[1773685372128,9.08531064,2336.8,2336.3,0.00404065]
[1773685372324,9.08531064,2336.6,2335.7,9.39048797]
[1773685372531,9.08531064,2336.6,2335.8,9.22101805]
[1773685373436,9.08531064,2336.6,2335.8,9.22450214]
[1773685374631,9.78097634,2336.4,2335.8,0.00348409]
[1773685374936,9.78449293,2336.4,2335.8,0.00348409]
[1773685376532,9.78449293,2336.4,2335.7,9.44335037]
[1773685377530,9.78449293,2336.4,2335.7,9.44810043]
[1773685377735,9.78449293,2336.4,2335.3,9.44335037]
[1773685377931,9.78481293,2336.4,2335.3,9.44335037]
[1773685378335,9.67744293,2336.4,2335.3,9.44335037]
[1773685378538,9.89290261,2336.4,2335.3,9.44335037]
[1773685378840,5.35170012,2337.1,2335.3,9.44335037]
[1773685378841,8.79178842,2337.1,2335.7,9.44335037]
[1773685379141,8.79178842,2337.1,2335.9,9.44335037]
[1773685379533,9.01017872,2337.1,2335.9,9.44335037]
[1773685379942,9.01536593,2337.1,2335.9,9.44335037]
[1773685383043,9.01536593,2337.1,2336.1,9.44335037]
[1773685383639,9.01536593,2337.1,2335.6,0.21406]
[1773685383640,9.01536593,2337.1,2335.9,8.656]
[1773685383842,9.01536593,2337.1,2335.9,18.09935037]
[1773685384042,9.01536593,2337.1,2336.0,9.44335037]
[1773685384243,8.79178842,2336.9,2336.0,9.44335037]
[1773685384737,9.01536593,2337.1,2336.0,9.44335037]
[1773685386740,8.79178842,2336.9,2335.7,9.44335037]
[1773685386946,8.79178842,2336.7,2335.7,9.44335037]
[1773685389952,8.79178842,2336.5,2335.4,9.44335037]
[1773685391049,8.79178842,2336.5,2335.5,9.44335037]
[1773685392652,8.79178842,2336.9,2335.5,9.65742037]
[1773685392949,5.19940707,2336.8,2335.5,9.65742037]
[1773685393153,8.79178842,2336.7,2335.5,9.65742037]
[1773685397255,8.79178842,2336.7,2335.7,9.44335037]
[1773685402359,8.79178842,2336.7,2335.9,9.44335037]
[1773685403353,0.21199043,2336.9,2335.9,9.44335037]
[1773685403558,9.07795186,2336.9,2335.9,9.44335037]
[1773685405261,9.07795186,2336.9,2336.0,8.97306082]
[1773685405558,9.07795186,2336.7,2336.0,8.97306082]
[1773685407353,0.21501646,2337.1,2336.0,9.18708082]
[1773685407661,9.07795186,2337.0,2336.0,9.18708082]
[1773685408357,0.00518721,2337.1,2336.0,9.18708082]
[1773685408563,9.08313907,2337.1,2336.0,9.18708082]
[1773685410754,0.00518721,2337.1,2336.0,9.18708082]
[1773685411857,0.00518721,2337.1,2336.0,9.29417082]
[1773685412569,9.08313907,2337.1,2336.0,9.29486082]
[1773685412757,9.08313907,2337.1,2336.0,9.29504082]
[1773685413160,9.08313907,2337.1,2336.0,9.18708082]
[1773685413667,9.08313907,2337.1,2336.0,9.29498082]
[1773685414064,9.08313907,2337.1,2336.0,9.29440082]
[1773685414366,9.08313907,2337.1,2336.0,9.29607082]
[1773685415364,9.08313907,2337.1,2336.2,9.08689082]
[1773685416661,9.08313907,2337.1,2336.1,8.689]
[1773685416662,0.00518721,2337.1,2336.6,8.97306082]
[1773685416870,8.56957337,2337.3,2336.6,8.97306082]
[1773685417267,8.56957337,2337.3,2336.2,8.97306082]
[1773685417663,9.07795186,2337.8,2336.4,8.97306082]
[1773685417875,9.07795186,2337.6,2336.4,8.97306082]
[1773685419467,9.07795186,2337.6,2336.5,17.66906082]
[1773685419667,9.07795186,2337.6,2336.6,8.97306082]
[1773685423074,9.07795186,2337.6,2336.4,8.699]
[1773685423075,12.65969239,2338.2,2337.0,8.97306082]
[1773685423272,12.65969239,2338.2,2336.7,8.55838]
[1773685423273,9.07795186,2338.1,2337.2,8.97306082]
[1773685423476,9.07795186,2338.1,2337.0,17.67606082]
[1773685423876,9.07795186,2338.1,2337.1,8.97306082]
[1773685424075,9.08335999,2338.1,2337.1,8.97641322]
[1773685427087,9.08335999,2338.1,2337.1,0.0033524]
[1773685427388,9.07795186,2337.9,2337.1,0.0033524]
[1773685427987,9.07795186,2337.7,2336.6,8.97306082]
[1773685428280,9.07795186,2337.7,2336.3,8.97306082]
[1773685428487,9.07795186,2337.7,2336.4,8.97306082]
[1773685428683,0.21388,2337.6,2336.4,8.97306082]
[1773685428986,9.07795186,2337.5,2336.4,8.97766153]
[1773685431489,9.07795186,2337.3,2336.4,0.00460071]
[1773685431687,9.07795186,2337.1,2336.1,8.97306082]
[1773685432397,9.07795186,2336.3,2335.2,8.97306082]
[1773685432585,8.23970291,2336.8,2335.4,8.8821304]
[1773685432790,0.21394,2336.9,2335.4,8.8821304]
[1773685432791,0.00443134,2336.3,2335.4,8.8821304]
[1773685432992,8.24413425,2336.3,2335.4,8.8821304]
[1773685434490,0.00443134,2336.3,2335.4,8.8821304]
[1773685434692,0.00443134,2336.3,2335.6,8.8821304]
[1773685435192,8.91403454,2336.3,2335.8,8.94380977]
[1773685437887,8.91403454,2336.3,2335.7,17.65480977]
[1773685438293,8.91403454,2336.3,2335.6,8.94380977]
[1773685438897,8.91403454,2336.3,2335.6,8.716]
[1773685439598,8.9096032,2336.8,2335.7,8.94380977]
[1773685440495,8.9096032,2337.3,2336.1,8.94380977]
[1773685440690,8.91270385,2337.3,2336.3,8.94380977]
[1773685440894,9.1318028,2337.3,2336.3,8.94380977]
[1773685441493,9.1318028,2337.3,2336.5,8.94380977]
[1773685442598,9.1318028,2337.3,2336.5,17.66680977]
[1773685442995,8.9096032,2337.6,2336.6,8.94380977]
[1773685443201,8.9096032,2338.2,2336.8,8.94380977]
[1773685443398,8.9096032,2338.0,2336.8,8.94380977]
[1773685443603,8.9096032,2338.0,2337.0,8.94380977]
[1773685443802,8.9096032,2338.0,2337.2,8.94380977]
[1773685444001,8.9096032,2338.0,2337.3,8.725]
[1773685444002,8.91302907,2338.0,2337.3,8.725]
[1773685444302,8.91302907,2338.0,2337.3,17.66880977]
[1773685444500,8.91302907,2338.0,2337.4,8.94380977]
[1773685445998,8.91302907,2338.0,2337.2,8.94893369]
[1773685447799,8.91302907,2338.0,2337.2,0.00512392]
[1773685448004,8.91302907,2338.0,2337.3,8.731]
[1773685448197,8.91302907,2338.0,2337.3,8.94380977]
[1773685448398,8.91302907,2338.0,2337.3,17.67580977]
[1773685449804,8.91302907,2338.0,2337.3,8.735]
[1773685450104,3.58174053,2338.8,2337.3,8.735]
[1773685450105,8.9096032,2338.2,2337.4,8.94380977]
[1773685451205,8.91372323,2338.2,2337.4,8.94380977]
[1773685451404,0.00412003,2338.2,2337.4,8.94380977]
[1773685451908,0.00412003,2338.2,2337.3,8.9489]
[1773685451909,8.9096032,2338.5,2337.8,8.94380977]
[1773685452102,3.58174053,2339.5,2337.7,0.21387]
[1773685452103,8.9096032,2338.8,2338.0,9.05450977]
[1773685452700,8.91414123,2338.8,2338.0,9.05450977]
[1773685452898,0.00453803,2338.8,2338.0,9.05450977]
[1773685453101,0.00453803,2338.8,2338.0,8.94380977]
[1773685453608,0.00453803,2338.8,2338.0,9.05104977]
[1773685453801,8.9096032,2338.9,2338.2,9.05435977]
[1773685453998,8.9096032,2339.6,2338.2,9.05435977]
[1773685454199,8.9096032,2340.2,2338.4,9.05659977]
[1773685454497,8.9096032,2340.0,2338.4,8.94380977]
[1773685454702,8.9096032,2339.8,2338.6,8.94380977]
[1773685456509,8.9096032,2339.8,2338.8,8.94380977]
[1773685456902,8.9096032,2339.8,2338.9,8.749]
[1773685457102,8.9096032,2339.8,2338.9,8.75363275]
[1773685458107,8.9096032,2339.8,2338.9,17.69744252]
[1773685458312,8.9096032,2339.8,2339.0,8.94380977]
[1773685458609,8.91421579,2340.0,2339.0,9.15755977]
[1773685459203,0.00461259,2340.0,2339.0,9.15755977]
[1773685460214,8.91421579,2340.0,2339.0,9.15755977]
[1773685460809,8.91421579,2340.0,2339.0,8.94380977]
[1773685461006,8.91421579,2340.0,2339.1,8.86536]
[1773685461211,8.91421579,2340.0,2339.2,9.05204977]
[1773685461807,8.91421579,2340.0,2339.2,8.94380977]
[1773685462214,8.91421579,2340.0,2339.2,9.05140977]
[1773685462414,8.91421579,2340.0,2339.0,8.26018942]
[1773685462617,8.91421579,2340.0,2338.9,0.21839275]
[1773685462618,8.91421579,2340.0,2338.9,17.23658217]
[1773685462810,8.91421579,2340.0,2339.0,8.26018942]
[1773685463116,0.52126228,2340.6,2339.1,13.04257607]
[1773685463117,8.39436538,2340.6,2339.1,13.04257607]
[1773685463414,8.39436538,2340.4,2338.9,0.00463275]
[1773685463614,8.4687637,2340.4,2338.9,0.00463275]
[1773685464020,8.39436538,2340.4,2338.9,8.26482217]
[1773685464210,8.39961071,2340.4,2338.9,8.26482217]
[1773685464413,8.39436538,2340.2,2338.9,8.26482217]
[1773685467812,8.39436538,2340.2,2339.3,8.26018942]
[1773685468018,8.39436538,2340.2,2339.5,8.26018942]
[1773685468313,0.00524533,2340.4,2339.9,8.26018942]
[1773685468519,8.39436538,2341.6,2340.1,8.26018942]
[1773685468815,8.39436538,2341.4,2340.5,8.26018942]
[1773685469525,8.39928325,2341.4,2340.5,8.26018942]
[1773685470016,8.39928325,2341.4,2339.9,8.26018942]
[1773685470216,8.39928325,2341.4,2340.3,8.26018942]
[1773685470619,8.39928325,2341.4,2340.4,8.77]
[1773685470821,8.39928325,2341.4,2340.5,8.26018942]
[1773685471122,8.39928325,2341.4,2340.6,8.47378942]
[1773685471422,8.39928325,2341.4,2340.6,0.0043781]
[1773685471624,8.39436538,2341.2,2340.6,0.0043781]
[1773685472026,8.39436538,2340.9,2340.3,8.772]
[1773685472624,8.39436538,2340.9,2340.2,8.26018942]
[1773685472820,8.39436538,2340.9,2340.0,0.21366]
[1773685472821,8.39436538,2340.9,2340.0,8.26018942]
[1773685473019,8.39436538,2340.9,2340.0,0.00468186]
[1773685473224,0.00491787,2341.4,2340.0,0.00468186]
[1773685473225,8.39436538,2340.6,2340.0,0.00468186]
[1773685473617,8.39436538,2340.5,2340.0,8.26487128]
[1773685473817,8.39436538,2340.5,2338.9,8.26018942]
[1773685474016,8.39436538,2340.5,2339.1,8.26018942]
[1773685474223,8.39961071,2340.5,2339.1,8.26018942]
[1773685474422,8.39436538,2340.5,2339.1,8.26018942]
[1773685474630,8.39436538,2340.3,2339.1,8.26018942]
[1773685474828,8.39436538,2340.3,2339.3,8.26018942]
[1773685475123,8.39436538,2340.3,2339.4,8.775]
[1773685475323,8.39436538,2340.3,2339.4,17.03518942]
[1773685475524,8.39436538,2340.1,2339.2,0.21373]
[1773685475824,8.39436538,2340.1,2339.1,0.00419248]
[1773685476029,8.39436538,2339.8,2339.1,8.2643819]
[1773685476324,8.19436538,2339.8,2339.1,8.2643819]
[1773685476631,8.19961071,2339.8,2339.1,8.2643819]
[1773685476831,8.19436538,2339.8,2339.1,8.2643819]
[1773685477027,8.39436538,2339.6,2339.1,0.00419248]
[1773685477226,8.39812776,2339.6,2339.1,0.00419248]
[1773685477725,8.39812776,2339.6,2338.7,8.26018942]
[1773685478522,8.39812776,2339.6,2338.7,8.26467903]
[1773685478722,8.39812776,2339.6,2338.8,8.26018942]
[1773685479132,8.39436538,2340.5,2339.0,8.26018942]
[1773685479526,8.39436538,2340.5,2339.1,0.21374]
[1773685479830,8.39436538,2340.3,2339.4,8.26018942]
[1773685480031,8.39436538,2340.3,2339.6,8.26018942]
[1773685480230,8.39824359,2340.3,2339.6,8.26018942]
[1773685480530,0.00387821,2340.3,2339.8,8.26018942]
[1773685481420,8.39824359,2340.3,2339.6,8.26018942]
[1773685481828,8.40348892,2340.3,2339.5,0.21371]
[1773685482029,8.39824359,2340.3,2339.4,8.26018942]
[1773685482930,8.40348892,2340.3,2339.4,17.04518942]
[1773685483124,8.39824359,2340.3,2339.4,17.04518942]
[1773685483321,0.00524533,2340.1,2339.4,17.04518942]
[1773685483521,8.39436538,2340.0,2339.4,17.04518942]
[1773685484532,8.39436538,2339.8,2339.4,8.26018942]
[1773685484731,8.39436538,2339.8,2339.2,17.04718942]
[1773685485031,8.39436538,2340.2,2339.3,8.26018942]
[1773685485330,8.39961071,2340.2,2339.3,17.04818942]
[1773685485532,8.39436538,2340.2,2339.4,8.26018942]
[1773685485725,8.39961071,2340.2,2339.4,8.26018942]
[1773685485926,8.39436538,2340.2,2339.4,8.26018942]
[1773685486128,8.39961071,2340.1,2339.4,8.26018942]
[1773685486324,8.39824359,2340.3,2339.4,8.26018942]
[1773685486732,8.39436538,2340.1,2339.2,8.26018942]
[1773685489834,8.39436538,2340.1,2339.2,8.36766942]
[1773685490036,8.39436538,2340.1,2339.2,8.26018942]
[1773685490230,8.39436538,2340.1,2339.2,8.36790942]
[1773685490436,8.39436538,2340.1,2339.2,8.26018942]
[1773685490631,3.54035271,2341.1,2339.6,8.26018942]
[1773685490838,8.39436538,2341.1,2340.0,8.36944942]
[1773685491038,8.39436538,2341.1,2340.2,8.26018942]
[1773685491438,0.00524533,2340.9,2340.2,8.26018942]
[1773685491835,0.00524533,2340.8,2340.2,8.26018942]
[1773685492031,8.39436538,2341.3,2340.2,8.26018942]
[1773685493136,8.61297582,2341.3,2340.0,17.27901903]
[1773685493733,8.61297582,2341.3,2340.0,8.47701903]
[1773685493939,8.61297582,2341.3,2340.2,8.47701903]
[1773685494137,8.61297582,2341.3,2340.4,8.47701903]
[1773685494138,8.39943582,2341.3,2340.4,8.47701903]
[1773685494334,8.39943582,2341.3,2340.4,8.48211729]
[1773685494740,8.39943582,2341.3,2340.4,0.00509826]
[1773685495342,8.34100941,2341.1,2338.8,24.76712737]
[1773685495643,8.34100941,2340.1,2338.9,8.37331867]
[1773685495842,5.32580066,2340.0,2338.9,8.37331867]
[1773685496043,8.34100941,2339.9,2338.9,8.37331867]
[1773685496438,8.34100941,2339.9,2338.9,8.37849033]
[1773685498249,8.34100941,2340.7,2339.1,8.37331867]
[1773685498437,8.34100941,2340.7,2339.3,10.161566]
[1773685498840,8.34100941,2340.7,2339.5,8.37331867]
[1773685501144,8.34100941,2340.7,2339.6,17.18531867]
[1773685501343,8.34100941,2340.7,2339.7,8.37331867]
[1773685505851,8.34100941,2340.7,2339.9,8.37331867]
[1773685507351,0.21193933,2341.1,2339.9,8.37331867]
[1773685507352,8.34100941,2341.0,2339.9,8.37331867]
[1773685507948,8.34100941,2341.0,2340.0,4.72037866]
[1773685508149,8.34100941,2341.0,2340.1,8.37331867]
[1773685509050,8.34100941,2341.0,2340.3,8.37331867]
[1773685510448,8.34100941,2341.2,2340.3,8.37331867]
[1773685512755,8.34100941,2341.0,2340.0,8.824]
[1773685513053,8.34100941,2341.0,2340.1,8.37331867]
[1773685516250,8.34100941,2341.0,2339.8,8.37331867]
[1773685518350,8.34100941,2341.0,2340.0,8.37331867]
[1773685518551,8.34100941,2340.8,2339.8,8.37331867]
[1773685521357,8.34100941,2340.6,2339.8,8.37331867]
[1773685522457,8.01709273,2341.0,2340.0,8.20483597]
[1773685522762,13.68944927,2340.9,2340.0,8.41849597]
[1773685523057,8.02216317,2341.3,2340.0,8.41849597]
[1773685523256,13.68922537,2341.2,2340.0,8.41849597]
[1773685523559,5.67213264,2341.1,2340.0,8.41849597]
[1773685523761,8.02216317,2341.3,2340.4,0.21362]
[1773685523962,8.02216317,2341.3,2340.6,8.20483597]
[1773685524162,8.02216317,2341.3,2340.6,8.20791934]
[1773685525360,8.02216317,2341.3,2340.6,0.00308337]
[1773685525754,8.02216317,2341.3,2340.6,8.20791934]
[1773685526462,8.01709273,2341.7,2340.6,8.20791934]
[1773685527362,8.02022262,2341.7,2340.6,8.20791934]
[1773685528960,8.02022262,2341.7,2340.8,8.20483597]
[1773685529264,8.02022262,2341.7,2340.6,0.00308337]
[1773685529265,8.02022262,2341.7,2340.7,8.846]
[1773685529660,8.02022262,2341.7,2340.8,8.20483597]
[1773685530962,8.02022262,2341.7,2340.6,0.00308337]
[1773685530963,8.01709273,2341.4,2340.6,0.00308337]
[1773685531362,8.01709273,2341.4,2340.2,17.05283597]
[1773685531562,8.01709273,2341.3,2340.2,17.05283597]
[1773685532062,8.01709273,2341.3,2340.2,8.20483597]
[1773685532262,8.01709273,2341.2,2339.9,8.20483597]
[1773685532459,8.01709273,2341.2,2339.9,8.20795072]
[1773685532661,8.01709273,2341.0,2339.9,8.20795072]
[1773685533265,8.01709273,2340.7,2339.0,8.20483597]
[1773685533462,8.01709273,2340.1,2339.0,8.20483597]
[1773685533762,8.01709273,2340.0,2338.8,8.20483597]
[1773685534464,8.02218561,2340.0,2338.8,0.00471209]
[1773685535160,11.58388149,2339.9,2338.9,8.20483597]
[1773685535358,8.01709273,2339.8,2338.9,8.20483597]
[1773685535867,8.01709273,2339.6,2338.8,8.20954806]
[1773685539863,8.01709273,2339.6,2338.8,8.31673806]
[1773685540064,8.01709273,2339.6,2338.8,8.20954806]
[1773685540263,8.01709273,2339.6,2339.0,8.20483597]
[1773685540568,0.00509288,2340.0,2339.2,8.20483597]
[1773685540963,8.01709273,2340.6,2339.6,8.20483597]
[1773685541263,8.01709273,2340.6,2339.7,8.20483597]
[1773685541666,8.01709273,2340.6,2339.7,8.31345597]
[1773685541867,0.00406034,2340.6,2340.1,8.20483597]
[1773685542063,8.02115307,2340.6,2340.1,8.20483597]
[1773685542262,8.02115307,2340.6,2339.8,8.20483597]
[1773685542462,8.02115307,2340.6,2339.8,8.32004597]
[1773685543067,8.01709273,2340.8,2340.3,8.20483597]
[1773685543568,8.01709273,2340.8,2340.1,8.52923597]
[1773685544063,8.02263902,2340.8,2340.1,8.52923597]
[1773685545562,8.01709273,2341.3,2340.4,8.20483597]
[1773685545763,13.59878876,2341.8,2340.4,8.20483597]
[1773685545764,8.01709273,2341.7,2340.4,8.20483597]
[1773685545963,8.01709273,2341.7,2340.4,8.31218597]
[1773685546463,8.02207431,2341.7,2340.6,8.31748597]
[1773685546765,8.02207431,2341.7,2340.7,8.31242597]
[1773685546965,8.02207431,2341.7,2340.6,0.00434543]
[1773685547266,8.01709273,2341.5,2340.2,8.20483597]
[1773685547464,8.01709273,2341.3,2340.2,8.20483597]
[1773685548264,8.01709273,2341.3,2340.2,8.20955633]
[1773685552463,8.01709273,2341.3,2340.4,8.27938646]
[1773685554064,8.04091574,2341.6,2340.4,8.27938646]
[1773685555068,8.04091574,2341.6,2340.4,8.38623646]
[1773685555665,8.04091574,2341.6,2340.4,17.14438646]
[1773685555973,8.04091574,2341.6,2340.3,0.21363]
[1773685555974,8.04091574,2341.6,2340.3,8.2135596]
[1773685556370,8.25997796,2341.4,2340.2,0.00472036]
[1773685556577,8.25997796,2341.4,2340.2,8.21827996]
[1773685556875,8.25997796,2341.2,2340.2,8.21827996]
[1773685557377,8.25997796,2341.2,2340.2,0.00472036]
[1773685558379,8.25997796,2341.2,2340.2,8.21827996]
[1773685558671,8.25997796,2341.2,2340.2,8.43191996]
[1773685558878,0.00498158,2341.7,2340.2,8.43191996]
[1773685558879,8.25997796,2341.6,2340.2,8.43191996]
[1773685559375,0.00498158,2341.7,2341.0,8.2135596]
[1773685559574,8.25997796,2342.2,2341.2,8.2135596]
[1773685560473,8.26452761,2342.2,2341.2,8.2135596]
[1773685560668,8.26452761,2342.2,2340.9,8.2135596]
[1773685565173,8.26452761,2342.2,2341.1,8.2135596]
[1773685565478,8.26452761,2342.2,2341.3,8.2135596]
[1773685565684,8.26452761,2342.2,2341.5,8.2135596]
[1773685565975,5.32341343,2345.3,2343.7,3.3455165]
[1773685566179,3.5484287,2345.8,2341.9,1.95912492]
[1773685566180,3.5484287,2345.8,2345.0,3.33258936]
[1773685566480,8.56650005,2347.0,2345.2,3.33258936]
[1773685566670,8.25997796,2347.0,2345.2,3.33258936]
[1773685566870,8.25997796,2347.6,2345.4,3.33238448]
[1773685567081,8.5182,2347.8,2345.3,4.20888089]
[1773685567082,8.25997796,2346.7,2345.3,4.20888089]
[1773685567275,8.25997796,2346.1,2345.2,0.00414749]
[1773685567574,8.52326,2346.4,2344.0,4.56293488]
[1773685567575,8.25997796,2345.7,2344.0,4.56293488]
[1773685567778,8.25997796,2345.7,2343.9,8.751]
[1773685567779,8.25997796,2345.2,2343.8,4.33101027]
[1773685567982,8.25997796,2346.0,2344.2,4.33101027]
[1773685568372,8.26321353,2346.0,2344.4,4.34129466]
[1773685568575,8.26321353,2346.0,2344.6,4.26465466]
[1773685568778,8.25997796,2345.5,2344.5,0.24900276]
[1773685568981,8.73858,2345.8,2344.2,3.16297503]
[1773685568982,8.25997796,2345.3,2344.2,3.16297503]
[1773685569877,8.25997796,2345.3,2344.3,4.69395038]
[1773685570081,8.25997796,2345.3,2344.3,12.01654285]
[1773685570284,8.25997796,2345.3,2344.3,12.02054285]
[1773685570477,8.25997796,2345.3,2344.3,3.20454285]
[1773685570683,8.25997796,2345.3,2344.2,0.00401811]
[1773685571182,8.25997796,2345.5,2343.7,3.21338974]
[1773685571682,8.25997796,2345.5,2343.5,4.90625939]
[1773685571879,8.25997796,2345.5,2343.4,3.19725219]
[1773685572074,8.25997796,2345.2,2343.4,3.20102917]
[1773685572280,8.25997796,2345.0,2343.4,0.00377698]
[1773685572484,10.122,2345.1,2342.5,3.32025224]
[1773685572485,8.25997796,2344.5,2342.5,3.32025224]
[1773685572681,8.25997796,2344.1,2342.5,3.32025224]
[1773685573079,10.13,2344.3,2342.4,13.63121502]
[1773685573080,8.25997796,2343.9,2342.4,8.806]
[1773685573283,8.25997796,2343.9,2342.5,3.64293909]
[1773685573584,8.25997796,2343.6,2342.2,3.64293909]
[1773685573779,8.25997796,2343.6,2342.4,0.00504603]
[1773685574184,0.00428499,2343.9,2342.4,0.00504603]
[1773685574185,8.25997796,2343.3,2342.4,0.00504603]
[1773685574581,8.25997796,2343.0,2342.4,0.00504603]
[1773685574786,8.25997796,2343.0,2342.4,0.00391907]
[1773685574988,8.25997796,2343.0,2341.3,3.73488465]
[1773685575288,8.25997796,2342.8,2341.3,3.73488465]
[1773685575694,8.25997796,2342.8,2341.5,3.71892263]
[1773685576185,8.25997796,2342.8,2341.5,3.72202639]
[1773685576681,8.25997796,2342.8,2341.5,0.00310376]
[1773685577188,8.25997796,2342.5,2341.5,0.00310376]
[1773685578083,8.25997796,2342.5,2340.7,8.878]
[1773685578485,8.25997796,2342.3,2340.8,4.52378468]
[1773685578783,8.25997796,2342.3,2340.7,12.64137919]
[1773685578984,8.25997796,2342.1,2340.8,3.78537919]
[1773685579284,8.26552485,2342.1,2340.8,3.79059884]
[1773685579484,8.25997796,2341.9,2340.8,0.00521965]
[1773685580080,8.25997796,2341.6,2340.8,0.00521965]
[1773685580283,8.25997796,2341.6,2340.0,8.885]
[1773685580489,8.26450479,2341.6,2340.0,8.885]
[1773685580688,8.25997796,2341.6,2339.8,8.31487572]
[1773685580877,8.25997796,2341.6,2339.8,3.75745861]
[1773685581079,8.25997796,2341.3,2339.8,3.75745861]
[1773685581387,8.25997796,2341.3,2340.1,4.17452888]
[1773685581779,8.25997796,2341.3,2340.1,0.21365]
[1773685581987,8.25997796,2341.1,2340.1,0.21365]
[1773685582989,8.25997796,2341.1,2340.1,4.17237176]
[1773685583190,8.39128644,2342.0,2340.2,4.95677307]
[1773685583384,8.39128644,2342.0,2340.1,8.926]
[1773685583584,8.39128644,2342.0,2340.0,3.95872176]
[1773685583786,8.39128644,2341.5,2340.0,3.95872176]
[1773685584287,8.39128644,2341.3,2340.0,3.95872176]
[1773685585393,8.39128644,2341.1,2340.0,3.95872176]
[1773685586187,8.39128644,2341.1,2340.0,4.06616176]
[1773685586387,8.39128644,2341.1,2340.1,4.24204983]
[1773685586587,8.39128644,2341.1,2340.1,4.23808983]
[1773685586789,8.39128644,2341.1,2340.1,4.13032983]
[1773685587090,8.39128644,2341.1,2340.1,13.19525983]
[1773685587283,8.39128644,2341.1,2340.1,0.21365]
[1773685587890,8.39128644,2340.8,2340.1,0.21365]
[1773685588193,8.39128644,2340.8,2339.8,0.11131567]
[1773685588495,8.39581327,2340.8,2339.8,0.00348567]
[1773685588793,8.39128644,2340.8,2339.8,0.11124567]
[1773685588990,8.39128644,2340.8,2339.8,0.00348567]
[1773685589190,8.39128644,2340.6,2339.8,0.00348567]
[1773685589391,8.39128644,2340.6,2339.8,0.11115567]
[1773685589695,8.39128644,2340.6,2339.8,3.92211136]
[1773685589895,8.39128644,2340.6,2339.8,3.92129136]
[1773685590292,8.39128644,2340.6,2339.8,3.81444136]
[1773685590492,8.39128644,2340.6,2339.8,3.92143136]
[1773685590788,0.21349,2341.9,2339.9,4.14159431]
[1773685590995,8.39128644,2342.0,2340.3,4.12795431]
[1773685591201,8.39128644,2341.8,2340.0,3.91432431]
[1773685591493,8.39128644,2341.6,2340.1,0.21365]
[1773685591684,8.39128644,2341.6,2340.1,0.32114]
[1773685591886,8.39128644,2341.0,2339.8,0.00348567]
[1773685592089,8.39128644,2341.0,2339.9,0.32079]
[1773685592289,8.39128644,2341.0,2340.2,4.01519879]
[1773685592490,8.39128644,2341.9,2340.3,4.23004879]
[1773685592692,8.39581327,2341.9,2340.3,4.23004879]
[1773685592887,8.39128644,2341.9,2340.3,4.23004879]
[1773685593294,8.39128644,2341.9,2340.3,0.21363]
[1773685593788,8.39128644,2341.4,2340.0,4.05286136]
[1773685593993,8.39128644,2341.4,2339.8,0.21716567]
[1773685594595,8.39128644,2340.9,2339.2,0.21372]
[1773685594890,8.39128644,2340.9,2339.4,4.2955109]
[1773685595289,8.39128644,2340.9,2339.6,4.06670469]
[1773685595791,8.39128644,2340.7,2339.7,9.09643078]
[1773685595992,0.00452683,2340.8,2339.9,4.27729899]
[1773685596190,8.39128644,2341.0,2339.9,4.27729899]
[1773685596794,8.39581327,2341.0,2339.9,4.27729899]
[1773685596995,8.39128644,2341.0,2339.9,4.27729899]
[1773685597696,8.39128644,2341.0,2339.9,0.21367]
[1773685597995,8.39128644,2340.8,2339.9,0.21367]
[1773685598795,8.39128644,2340.6,2339.9,0.21367]